bitfinex/quotes_ETHUSD_20241106
["timestamp","ask_amount","ask_price","bid_price","bid_amount"]
[1730909910318,7.45466377,2645.9,2645.3,12.13]
[1730909911032,3.77965,2645.8,2645.3,12.13]
[1730909911256,7.45517377,2645.6,2645.2,0.7572]
[1730909911810,3.0,2645.8,2645.2,0.7572]
[1730909912113,3.67522377,2645.9,2645.2,0.7572]
[1730909912310,3.0,2646.0,2645.2,0.7572]
[1730909912547,3.0,2646.1,2645.2,0.7572]
[1730909912711,3.77887,2646.3,2645.4,0.7953]
[1730909913110,7.45390377,2646.5,2645.5,12.9253]
[1730909913417,7.45390377,2646.5,2645.6,0.7953]
[1730909913749,3.77971,2645.7,2645.2,0.7953]
[1730909913949,3.67522377,2645.6,2645.2,0.7953]
[1730909914814,3.78015,2645.4,2644.8,12.13]
[1730909915131,3.7806,2645.1,2644.8,0.8183]
[1730909915337,3.67522377,2645.0,2644.1,0.8183]
[1730909915559,3.67522377,2645.0,2644.1,12.9483]
[1730909915720,3.67522377,2645.0,2644.2,1.3704536]
[1730909916257,3.67522377,2645.0,2644.2,1.29483]
[1730909916421,3.67522377,2645.3,2644.4,0.7564]
[1730909916756,3.0,2645.6,2644.6,0.7564]
[1730909917534,3.78,2645.5,2644.6,0.7564]
[1730909917735,3.0,2645.6,2644.7,0.07561276]
[1730909917947,3.0,2645.6,2644.8,0.7891]
[1730909918127,3.78,2645.5,2644.8,0.7891]
[1730909919022,3.0,2645.6,2644.8,0.7891]
[1730909919219,6.77986,2645.6,2644.8,0.7891]
[1730909919666,8.28642938,2645.6,2644.8,0.7891]
[1730909920469,4.50656938,2645.6,2644.8,0.7891]
[1730909920668,3.67522377,2645.7,2645.0,0.7793]
[1730909920961,3.67522377,2645.7,2645.1,0.07560366]
[1730909921265,3.67522377,2646.0,2645.1,0.07560366]
[1730909921479,3.67522377,2646.3,2645.2,12.13]
[1730909921760,3.67522377,2646.3,2645.4,0.7766]
[1730909921972,3.67522377,2646.3,2645.5,0.07559041]
[1730909922391,7.45410377,2646.3,2645.4,0.7766]
[1730909922590,3.77921,2646.1,2645.4,0.7766]
[1730909922793,3.77921,2646.1,2645.4,2.18931604]
[1730909923109,3.67522377,2646.0,2645.4,2.18931604]
[1730909923411,0.7572,2646.4,2645.4,2.18931604]
[1730909923412,7.45419377,2646.3,2645.4,2.26491213]
[1730909923783,3.77908,2646.2,2645.4,2.18931604]
[1730909924111,3.67522377,2646.3,2645.5,0.075596]
[1730909924295,3.67522377,2646.3,2645.5,1.4394912]
[1730909924499,3.77922,2646.1,2645.4,0.7766]
[1730909924804,7.45451377,2646.0,2645.5,12.13]
[1730909925584,7.45494377,2645.7,2645.5,12.13]
[1730909925781,3.78021,2645.4,2645.2,12.13]
[1730909926082,7.45543377,2645.4,2645.2,12.13]
[1730909926282,7.45543377,2645.4,2645.0,12.13]
[1730909926283,3.0,2645.3,2645.0,12.13]
[1730909930724,3.67522377,2645.4,2645.0,12.13]
[1730909930886,7.45543377,2645.4,2645.0,12.13]
[1730909931315,3.67522377,2645.4,2645.0,12.13]
[1730909932011,7.45537377,2645.4,2645.0,12.13]
[1730909932426,4.61284,2645.2,2645.0,12.13]
[1730909932629,3.78081,2645.0,2644.6,0.7838]
[1730909932923,3.78081,2645.0,2644.6,12.9138]
[1730909933300,7.45579377,2645.1,2644.6,12.9138]
[1730909933495,3.78071,2645.0,2644.6,12.9138]
[1730909934528,3.0,2644.9,2644.6,12.13]
[1730909935019,6.78087,2644.9,2644.6,12.13]
[1730909935225,3.0,2644.9,2644.6,12.13]
[1730909935598,6.78095,2644.9,2644.6,12.13]
[1730909935799,7.45623377,2644.8,2644.6,12.13]
[1730909936027,3.67522377,2644.8,2644.6,12.13]
[1730909936587,3.0,2644.9,2644.5,12.13]
[1730909936928,10.56158,2645.0,2644.5,12.13]
[1730909937398,6.78079,2645.0,2644.5,12.13]
[1730909937600,6.78072,2645.0,2644.5,12.13]
[1730909938389,3.67522377,2644.8,2644.5,12.13]
[1730909938790,3.0,2645.0,2644.5,12.13]
[1730909938791,3.67522377,2645.1,2644.5,13.42156]
[1730909938998,3.67522377,2645.1,2644.6,0.8034]
[1730909939425,3.67522377,2645.1,2644.6,0.87901676]
[1730909939798,3.67522377,2645.1,2644.6,0.8034]
[1730909940116,3.67522377,2645.1,2644.7,1.422496]
[1730909942639,3.67522377,2645.1,2644.8,12.13]
[1730909944336,3.67522377,2645.4,2644.8,12.13]
[1730909944554,6.67522377,2645.7,2644.9,12.2056067]
[1730909944727,3.67522377,2645.7,2645.0,14.15166067]
[1730909944917,3.67522377,2646.0,2645.1,0.82670329]
[1730909945116,3.67522377,2646.3,2645.3,0.7511]
[1730909945316,3.67522377,2646.3,2645.5,0.7511]
[1730909945715,3.67522377,2646.0,2645.5,0.7511]
[1730909946045,3.67522377,2646.0,2645.6,0.07558925]
[1730909946795,3.67522377,2646.6,2645.7,12.13]
[1730909946999,3.67522377,2646.6,2645.9,0.7959]
[1730909947245,3.67522377,2646.6,2646.0,12.13]
[1730909948532,3.67522377,2646.6,2646.2,0.8116]
[1730909950265,3.67522377,2646.3,2646.2,0.8116]
[1730909950414,3.67522377,2646.3,2646.1,12.13]
[1730909950619,4.04274615,2646.3,2646.1,12.13]
[1730909952318,3.67522377,2646.3,2646.1,12.13]
[1730909953321,0.7709,2646.1,2645.9,12.13]
[1730909953522,4.55005,2646.1,2645.9,12.13]
[1730909953753,0.7709,2646.1,2645.9,12.13]
[1730909954450,3.67724611,2646.2,2645.9,12.13]
[1730909954756,7.45594611,2646.5,2645.9,12.8953]
[1730909954964,3.0,2646.4,2645.9,12.8953]
[1730909955474,6.77875,2646.4,2645.9,12.8953]
[1730909956065,7.45624611,2646.2,2645.9,12.13]
[1730909956426,3.0,2646.0,2645.9,12.13]
[1730909956627,3.0,2646.0,2645.7,12.13]
[1730909957259,3.67724611,2645.9,2645.7,12.13]
[1730909958457,3.77923,2646.1,2645.7,12.13]
[1730909958458,3.0,2646.1,2645.7,12.13]
[1730909958662,3.67724611,2646.2,2645.7,12.13]
[1730909959726,3.67724611,2646.2,2645.8,0.7553]
[1730909960337,4.58569,2646.9,2645.9,12.13]
[1730909960541,4.58569,2646.9,2646.1,0.7553]
[1730909960863,3.67724611,2646.7,2646.1,0.7553]
[1730909961167,3.77887,2646.3,2646.0,12.13]
[1730909961464,3.77887,2646.3,2644.9,0.01]
[1730909961465,3.77928,2646.0,2645.9,12.13]
[1730909961764,11.58009472,2646.0,2645.9,12.13]
[1730909962063,11.58009472,2646.0,2644.5,0.01]
[1730909962064,0.8042,2645.2,2644.7,12.13]
[1730909962278,0.8042,2645.2,2644.8,12.13]
[1730909962279,3.67724611,2644.9,2644.8,12.13]
[1730909966256,3.67724611,2644.9,2644.6,12.13]
[1730909966438,11.23916611,2644.9,2644.6,12.13]
[1730909966641,8.58209272,2644.9,2644.6,12.13]
[1730909967246,3.78107,2644.8,2644.6,12.13]
[1730909967486,8.58209272,2644.9,2644.7,0.04501124]
[1730909967786,8.58209272,2644.9,2644.6,12.17133892]
[1730909967944,8.58209272,2644.9,2644.6,12.13]
[1730909968366,8.58209272,2644.9,2644.6,12.175097]
[1730909969170,3.78102,2644.8,2644.6,12.175097]
[1730909970093,4.56314,2644.7,2644.6,12.175097]
[1730909970245,4.56314,2644.7,2644.6,0.045097]
[1730909970445,3.78152,2644.5,2644.3,12.13]
[1730909970668,3.67724611,2644.5,2644.4,0.03359519]
[1730909971144,3.67724611,2644.5,2644.4,0.0360225]
[1730909971345,3.67724611,2644.5,2643.9,12.13]
[1730909971789,3.67724611,2644.5,2644.0,0.036441]
[1730909971790,7.45876611,2644.5,2644.0,0.036441]
[1730909972091,3.78157,2644.4,2644.0,0.036441]
[1730909972862,3.78176,2644.3,2644.0,0.036441]
[1730909973065,8.28331611,2644.2,2644.0,0.036441]
[1730909973269,3.782,2644.1,2644.0,0.036441]
[1730909973448,3.78252,2643.8,2643.2,12.9176]
[1730909973661,3.67724611,2643.7,2643.3,12.13]
[1730909973995,0.8242,2643.6,2643.3,15.95008133]
[1730909974310,3.78222,2644.0,2643.3,15.95008133]
[1730909974311,0.8175,2643.9,2643.5,3.78284]
[1730909975095,3.67724611,2644.0,2643.5,4.54084]
[1730909975391,7.45939611,2644.0,2643.3,19.69613]
[1730909975616,7.45939611,2644.0,2643.5,3.78283]
[1730909976049,5.00378388,2644.0,2643.5,3.78283]
[1730909976485,3.67724611,2644.0,2643.5,3.78283]
[1730909976685,3.67724611,2644.0,2643.5,7.56559]
[1730909976912,3.67724611,2644.0,2643.6,3.78267]
[1730909977065,7.45943611,2644.0,2643.3,15.91313]
[1730909977251,8.66534272,2644.0,2643.4,3.82799077]
[1730909977590,3.67724611,2644.0,2643.6,3.78267]
[1730909977802,3.67724611,2644.0,2643.6,3.78263]
[1730909978154,7.45946611,2644.0,2643.4,3.78298]
[1730909978489,3.67724611,2644.0,2643.5,3.78278]
[1730909979229,4.5994,2644.2,2643.6,3.78263]
[1730909979879,0.8175,2644.2,2643.6,4.539163]
[1730909980081,0.8175,2644.2,2643.6,3.78261]
[1730909980624,3.78209,2644.1,2643.4,3.78289]
[1730909980984,3.78209,2644.1,2643.6,3.78269]
[1730909982630,0.8175,2644.2,2643.7,3.78257]
[1730909983111,0.8175,2644.2,2643.6,3.78269]
[1730909983424,4.59936,2644.2,2643.6,3.78269]
[1730909983783,5.77928311,2644.2,2643.6,3.78269]
[1730909984523,0.8175,2644.2,2643.8,3.78242]
[1730909985529,0.8175,2644.2,2643.8,3.78236]
[1730909985697,0.8291,2644.5,2643.8,12.896]
[1730909986034,0.8086,2644.8,2644.3,3.78158]
[1730909986757,0.8086,2644.8,2644.2,15.91184]
[1730909987246,3.8086,2644.8,2644.2,12.13]
[1730909987412,3.8086,2644.8,2644.3,3.7817]
[1730909987611,0.8086,2644.8,2644.4,12.13]
[1730909987811,0.8086,2644.8,2644.4,15.9115]
[1730909988361,0.8086,2644.8,2644.6,3.78127]
[1730909989414,3.0,2645.1,2644.7,3.78101]
[1730909989635,7.78374611,2645.2,2644.7,3.78101]
[1730909989636,4.1065,2645.2,2644.9,3.78078]
[1730909989914,3.33,2645.2,2644.8,12.13]
[1730909990255,0.7765,2645.6,2645.1,3.78053]
[1730909991036,0.7765,2645.6,2645.2,3.78042]
[1730909992040,0.7765,2645.6,2645.0,7.56134]
[1730909992250,4.16202614,2645.6,2645.0,3.78063]
[1730909992460,1.16202614,2645.6,2645.1,3.78047]
[1730909993449,1.16202614,2645.6,2645.0,3.78063]
[1730909993769,1.16202614,2645.6,2645.1,3.78053]
[1730909993924,0.7765,2645.6,2645.4,3.78014]
[1730909994119,4.1582,2646.0,2645.6,3.77986]
[1730909994348,0.8282,2646.3,2645.9,3.77934]
[1730909994593,4.1582,2646.5,2646.4,3.77871]
[1730909994863,3.33,2646.5,2646.4,15.90871]
[1730909998456,3.33,2646.5,2646.4,12.13]
[1730909998857,3.33,2646.5,2646.3,15.90877]
[1730909999581,3.33,2646.5,2646.4,3.77871]
[1730909999783,3.7582,2647.1,2646.6,3.77833]
[1730909999955,3.7582,2647.1,2646.7,3.77826]
[1730910000454,0.7582,2647.1,2646.6,15.90833]
[1730910001198,3.0,2647.0,2646.6,15.90833]
[1730910001381,6.67724611,2647.0,2646.6,12.13]
[1730910001591,4.52165461,2646.9,2646.6,12.13]
[1730910002568,3.0,2647.3,2646.7,0.7896]
[1730910002771,0.7798,2647.5,2646.7,0.7896]
[1730910002772,0.7798,2647.5,2646.7,12.99516379]
[1730910003067,0.7798,2647.5,2646.9,3.77791]
[1730910003275,3.77729,2647.4,2646.7,16.69778]
[1730910003470,3.77769,2647.2,2646.7,12.13]
[1730910003671,3.77769,2647.2,2646.7,15.90827]
[1730910003872,3.77766,2647.2,2646.7,15.90827]
[1730910004181,3.7778,2647.1,2646.7,12.13]
[1730910004489,6.77758,2647.2,2646.7,12.13]
[1730910004692,12.02405251,2647.2,2646.7,12.13]
[1730910005024,0.8319,2646.9,2646.7,12.13]
[1730910005358,4.60999,2646.9,2646.7,12.13]
[1730910007457,3.77814,2646.8,2646.7,12.13]
[1730910007765,6.77837,2646.7,2646.2,12.13]
[1730910007960,10.45561611,2646.7,2646.2,12.13]
[1730910008159,3.77866,2646.5,2646.2,12.13]
[1730910008384,7.43324611,2646.4,2645.9,12.13]
[1730910008698,4.43324611,2646.4,2645.9,12.13]
[1730910008914,3.756,2646.4,2645.9,12.13]
[1730910010114,7.53471,2646.4,2645.9,12.13]
[1730910010275,3.77897,2646.3,2646.0,12.13]
[1730910010472,8.288196,2646.4,2646.0,12.13]
[1730910010706,3.756,2646.4,2646.0,12.13]
[1730910011094,7.53474,2646.4,2646.0,12.13]
[1730910011398,0.756,2646.4,2646.0,12.13]
[1730910012106,0.8279,2646.7,2646.0,12.9065]
[1730910012278,3.8279,2646.7,2646.1,1.29065]
[1730910012475,3.0,2646.7,2646.1,1.29065]
[1730910012680,3.77778,2647.1,2646.3,0.7853]
[1730910012874,3.77778,2647.1,2646.4,12.13]
[1730910013230,5.02605951,2647.1,2646.4,12.13]
[1730910013373,3.77788,2647.0,2646.4,12.13]
[1730910013573,7.45512611,2647.0,2646.4,12.13]
[1730910013908,4.61136,2646.8,2646.4,12.13]
[1730910014075,3.7785,2646.6,2646.4,12.13]
[1730910014473,0.7579,2646.4,2645.8,0.7746]
[1730910014679,3.67724611,2646.1,2645.9,12.13]
[1730910014983,7.55926,2645.8,2645.6,12.13]
[1730910015198,7.55926,2645.8,2645.2,0.7746]
[1730910015199,3.77987,2645.6,2645.2,12.9046]
[1730910015405,4.835815,2645.6,2645.2,12.13]
[1730910015711,6.77981,2645.7,2645.2,12.13]
[1730910015872,3.7799,2645.6,2645.2,12.13]
[1730910016078,3.0,2645.7,2645.2,12.13]
[1730910016829,3.77986,2645.6,2645.2,12.13]
[1730910017003,7.28015775,2645.7,2645.2,12.13]
[1730910017206,4.61148,2645.3,2644.7,12.13]
[1730910017542,4.61148,2645.3,2644.8,12.13]
[1730910017695,11.05989775,2645.7,2644.8,12.13]
[1730910017696,11.87795775,2645.7,2644.8,12.13]
[1730910017899,3.77986,2645.6,2644.8,12.13]
[1730910018121,6.78,2645.5,2644.8,12.13]
[1730910018329,3.78,2645.5,2644.8,13.41818]
[1730910018633,3.0,2645.4,2644.8,13.41818]
[1730910019332,6.78016,2645.4,2644.8,12.13]
[1730910020331,3.7803,2645.3,2644.8,12.13]
[1730910020558,3.0,2645.4,2644.8,12.13]
[1730910021041,6.78017,2645.4,2644.8,12.13]
[1730910021701,7.56071,2645.3,2644.8,12.13]
[1730910021930,3.78057,2645.2,2644.9,12.13]
[1730910022139,3.0,2645.0,2644.9,12.13]
[1730910022497,0.7945,2645.1,2644.9,12.13]
[1730910022825,3.0,2645.0,2644.9,12.13]
[1730910023336,0.7945,2645.1,2644.9,12.13]
[1730910023538,3.0,2645.2,2644.9,12.13]
[1730910024532,6.78044,2645.2,2644.9,12.13]
[1730910024705,3.78058,2645.1,2644.9,12.13]
[1730910024910,6.78071,2645.0,2644.9,12.13]
[1730910025642,6.78071,2645.0,2644.4,12.13]
[1730910026054,4.2376827,2645.2,2644.4,12.13]
[1730910026410,3.0,2645.0,2644.4,12.13]
[1730910027210,6.78073,2645.0,2644.4,12.13]
[1730910027411,6.78044,2645.2,2644.4,13.41829]
[1730910027615,3.0,2645.3,2644.4,13.41829]
[1730910027811,3.77986,2645.6,2644.6,0.7828]
[1730910028033,0.793,2645.7,2644.6,0.7828]
[1730910028240,3.77968,2645.8,2644.8,0.7828]
[1730910028508,3.77968,2645.8,2644.9,0.07560945]
[1730910028743,3.33,2645.9,2645.0,0.8157]
[1730910028954,7.10944,2645.9,2645.1,12.13]
[1730910029162,7.10944,2645.9,2645.2,1.29457]
[1730910030028,3.0,2645.8,2645.2,1.29457]
[1730910030227,7.10944,2645.9,2645.2,1.29457]
[1730910030853,3.33,2645.9,2645.2,13.42457]
[1730910031037,3.33,2645.9,2645.3,0.8328]
[1730910031240,7.04905,2646.2,2645.4,0.212737]
[1730910031440,3.0,2646.0,2645.4,0.212737]
[1730910031762,3.27,2646.2,2645.4,12.342737]
[1730910032327,8.32162,2646.3,2645.5,0.0776855]
[1730910032527,8.32162,2646.3,2645.4,12.342737]
[1730910032728,3.77902,2646.2,2645.5,1.3175537]
[1730910032925,3.0,2646.2,2645.5,1.39505856]
[1730910033171,6.77907,2646.2,2645.5,1.39505856]
[1730910033462,3.77915,2646.1,2645.5,1.39505856]
[1730910033640,3.77915,2646.1,2645.5,1.3175537]
[1730910034030,3.7793,2646.0,2645.5,1.3175537]
[1730910034231,3.7793,2646.0,2645.4,12.342737]
[1730910034735,3.7793,2646.0,2645.4,12.13]
[1730910034736,6.77958,2645.8,2645.4,12.13]
[1730910034933,6.77958,2645.8,2645.5,0.0774481]
[1730910035766,6.77943,2645.9,2645.3,0.8328]
[1730910036172,0.7972,2645.8,2644.7,0.78]
[1730910036466,3.77998,2645.6,2644.8,1.36915632]
[1730910036657,7.45738039,2645.7,2644.8,1.36915632]
[1730910036856,7.45738039,2645.7,2644.9,12.13]
[1730910036857,6.78014,2645.4,2644.9,12.13]
[1730910037059,3.0,2645.4,2644.9,12.2085692]
[1730910037268,3.0,2645.6,2644.9,12.2085692]
[1730910037647,6.77988,2645.6,2644.9,12.2085692]
[1730910038333,10.55984,2645.6,2644.9,12.2085692]
[1730910038733,3.78001,2645.5,2644.9,12.2085692]
[1730910039041,3.78001,2645.5,2644.9,13.50742612]
[1730910039460,3.0,2645.6,2644.9,13.50742612]
[1730910039669,3.78,2645.5,2644.9,13.50742612]
[1730910040136,3.78,2645.5,2644.9,12.2085692]
[1730910040337,3.78016,2645.4,2645.0,12.13]
[1730910040666,3.78016,2645.4,2645.0,12.20822239]
[1730910040872,3.78029,2645.3,2645.0,12.20822239]
[1730910041078,4.158519,2645.2,2645.0,0.07822239]
[1730910041372,3.78049,2645.2,2644.8,12.13]
[1730910041577,6.78049,2645.2,2645.1,0.07812304]
[1730910041876,6.78049,2645.2,2645.1,0.07808691]
[1730910042078,6.78049,2645.2,2644.8,12.13]
[1730910042233,3.0,2645.4,2645.1,0.07839781]
[1730910042440,3.0,2645.4,2644.8,12.13]
[1730910042667,6.78016,2645.4,2644.9,0.07825752]
[1730910043269,6.78015,2645.4,2644.9,0.07825752]
[1730910043468,3.78035,2645.3,2644.9,0.07825752]
[1730910043670,3.0,2645.5,2644.9,1.37708327]
[1730910044332,3.78017,2645.4,2644.9,1.37708327]
[1730910044532,3.78017,2645.4,2644.9,0.07825752]
[1730910045141,6.78,2645.5,2644.9,0.07825752]
[1730910045345,3.0,2645.5,2644.9,0.07825752]
[1730910045547,6.78008,2645.5,2644.9,0.07825752]
[1730910045748,3.78017,2645.4,2644.9,0.07825752]
[1730910046151,3.78017,2645.4,2645.0,12.13]
[1730910046553,3.78017,2645.4,2645.1,0.07796001]
[1730910047158,3.0,2645.6,2645.1,0.07796001]
[1730910047365,6.77994,2645.6,2645.1,0.07796001]
[1730910047762,3.78001,2645.5,2645.1,0.07796001]
[1730910047958,6.78016,2645.4,2645.1,0.07796001]
[1730910048471,6.78,2645.6,2645.1,0.07796001]
[1730910049362,3.78002,2645.5,2645.1,0.07796001]
[1730910049571,3.0,2645.4,2645.1,0.07796001]
[1730910050234,3.678002,2645.4,2645.1,0.07796001]
[1730910051550,7.458162,2645.4,2645.1,0.07796001]
[1730910051774,3.7803,2645.3,2645.1,0.07796001]
[1730910051974,3.0,2645.2,2645.1,0.07796001]
[1730910052338,3.0,2645.2,2644.7,0.78]
[1730910052539,3.0,2645.2,2645.1,0.07789763]
[1730910052864,3.0,2645.2,2644.7,0.78]
[1730910052865,7.89402724,2645.2,2644.7,0.78]
[1730910053071,4.11359724,2645.2,2645.1,0.07789763]
[1730910053375,4.11359724,2645.2,2644.7,0.78]
[1730910053676,6.78046,2645.2,2644.7,0.78]
[1730910053922,3.78072,2645.0,2644.8,0.07568263]
[1730910054083,7.56156,2645.0,2644.4,0.7929]
[1730910054273,7.56156,2645.0,2644.5,12.13]
[1730910054470,3.7983,2644.7,2644.5,0.07346769]
[1730910054799,3.78165,2644.4,2644.2,12.13]
[1730910054972,3.78207,2644.1,2643.8,12.13]
[1730910055977,3.55,2644.4,2643.8,12.13]
[1730910056173,3.78171,2644.3,2643.8,12.13]
[1730910056520,3.78171,2644.3,2642.7,0.18417457]
[1730910056521,3.0,2643.9,2643.4,0.8207]
[1730910057110,6.78229,2643.9,2643.4,0.8207]
[1730910057317,3.78253,2643.8,2643.1,12.8922]
[1730910057501,6.78237,2643.9,2643.1,12.8922]
[1730910057711,3.78243,2643.8,2643.2,1.35820725]
[1730910058020,3.0,2643.9,2643.2,1.35820725]
[1730910058021,6.78232,2643.9,2643.2,1.35820725]
[1730910058230,3.0,2643.9,2643.2,1.35820725]
[1730910058522,6.78235,2643.9,2643.2,1.28922]
[1730910058686,3.78244,2643.8,2643.1,12.8922]
[1730910059495,3.78243,2643.8,2643.1,12.8922]
[1730910059710,3.0,2643.9,2643.1,12.8922]
[1730910060146,3.0,2644.1,2643.2,0.07566372]
[1730910060425,6.78207,2644.1,2643.2,1.29678637]
[1730910060611,10.27767039,2644.8,2643.4,0.55]
[1730910060817,3.33,2644.8,2643.7,0.8099]
[1730910061005,3.8505256,2644.8,2643.7,0.8099]
[1730910061332,3.33,2644.8,2643.9,0.8099]
[1730910061631,3.33,2644.8,2644.1,0.8291]
[1730910061823,3.33,2644.8,2644.2,12.13]
[1730910062038,3.33,2644.8,2644.2,12.19702309]
[1730910062204,3.33,2644.8,2644.2,13.4996354]
[1730910062600,3.33,2644.8,2644.3,12.13]
[1730910063126,3.33,2644.8,2644.5,0.7761]
[1730910063533,3.33,2644.8,2644.6,0.06431151]
[1730910063992,4.35567239,2645.4,2644.6,0.06431151]
[1730910064194,4.35567239,2645.4,2644.7,12.13]
[1730910064395,3.78031,2645.3,2644.7,12.13]
[1730910064628,5.05234824,2645.3,2644.8,0.06424122]
[1730910065003,5.05234824,2645.3,2644.7,12.13]
[1730910065201,3.7801,2645.5,2644.9,0.06414188]
[1730910065429,7.10986,2645.6,2644.8,12.19424122]
[1730910065633,7.10986,2645.6,2645.0,0.06404254]
[1730910065799,7.10986,2645.6,2644.9,0.06414188]
[1730910065996,7.10986,2645.6,2644.8,12.13]
[1730910065997,3.78005,2645.5,2645.1,0.06394321]
[1730910066326,4.44076386,2645.4,2645.2,0.06384388]
[1730910066621,3.0,2645.3,2644.9,12.13]
[1730910067626,3.78059,2645.1,2644.9,12.13]
[1730910067825,3.78108,2644.8,2644.2,0.8313]
[1730910068012,3.0,2644.5,2644.2,12.13]
[1730910068212,0.793,2644.7,2644.2,12.13]
[1730910068388,3.793,2644.7,2644.2,12.13]
[1730910068589,3.0,2644.5,2644.2,12.13]
[1730910068997,6.78147,2644.5,2644.2,12.13]
[1730910069295,3.0,2644.5,2644.2,12.13]
[1730910070314,6.7815,2644.5,2644.2,12.13]
[1730910070520,4.135578,2644.5,2644.2,12.13]
[1730910072310,3.0,2644.5,2644.2,12.13]
[1730910072985,3.0,2644.5,2643.9,0.8313]
[1730910072986,3.0,2644.5,2644.0,12.13]
[1730910073488,3.0,2644.5,2644.1,0.06609148]
[1730910073894,6.78143,2644.5,2644.1,0.06609148]
[1730910074889,3.78186,2644.2,2644.1,0.06609148]
[1730910075185,5.34369715,2644.2,2644.1,0.06609148]
[1730910075551,5.34369715,2644.2,2643.6,0.7676]
[1730910075756,3.78209,2644.1,2643.7,0.0643958]
[1730910075958,5.34369715,2644.2,2643.7,0.0643958]
[1730910075959,3.78229,2643.9,2643.7,0.0643958]
[1730910076286,3.78229,2643.9,2643.4,0.7676]
[1730910076496,3.78229,2643.9,2643.4,12.8976]
[1730910076708,3.0,2644.0,2643.5,0.0646258]
[1730910076913,3.83438672,2644.0,2643.5,0.0646258]
[1730910079190,3.78229,2643.9,2643.5,0.0646258]
[1730910079414,3.83438672,2644.0,2643.5,0.0646258]
[1730910079568,7.61654672,2644.0,2643.5,0.0646258]
[1730910079767,3.0,2643.8,2643.5,0.0646258]
[1730910080005,3.78288,2643.5,2643.3,12.13]
[1730910080606,6.783,2643.4,2643.0,0.7891]
[1730910080815,3.783,2643.4,2642.7,0.7891]
[1730910080970,3.783,2643.4,2642.8,12.13]
[1730910080971,3.0,2643.4,2642.8,12.13]
[1730910081172,6.78309,2643.4,2642.8,12.13]
[1730910081399,7.839694,2643.4,2642.8,12.13]
[1730910081705,4.056604,2643.4,2642.8,12.13]
[1730910081919,4.056604,2643.4,2642.7,0.7891]
[1730910082074,1.056604,2643.4,2642.7,0.7891]
[1730910082407,3.78293,2643.5,2642.7,0.7891]
[1730910082603,3.0,2643.4,2642.7,0.7891]
[1730910083185,3.78301,2643.4,2642.7,0.7891]
[1730910083387,3.78287,2643.5,2642.7,0.7891]
[1730910083687,3.0,2643.4,2642.7,0.7891]
[1730910084027,0.678287,2643.3,2642.7,0.7891]
[1730910084590,3.78351,2643.1,2642.7,0.7891]
[1730910084790,3.78351,2643.1,2641.8,0.814]
[1730910085085,3.0,2643.0,2642.0,0.814]
[1730910085323,3.0,2643.1,2642.0,0.814]
[1730910085496,0.678287,2643.3,2642.2,0.814]
[1730910085686,0.678287,2643.3,2642.4,0.814]
[1730910085888,3.7993,2643.6,2642.5,0.07567888]
[1730910086093,3.7993,2643.6,2642.1,0.56]
[1730910086094,3.7993,2643.6,2642.4,0.55]
[1730910086323,3.7993,2643.6,2642.6,0.7599]
[1730910086524,7.58209,2643.6,2642.6,0.7599]
[1730910086700,3.7993,2643.6,2642.7,0.06359582]
[1730910086885,3.0,2643.4,2642.6,0.7599]
[1730910087313,1.15670591,2643.5,2642.7,0.06359582]
[1730910087498,1.15670591,2643.5,2642.6,0.7599]
[1730910087940,3.3,2643.7,2642.7,0.93364313]
[1730910088224,0.3,2643.7,2642.7,0.7945]
[1730910088395,3.68357658,2644.0,2642.9,0.7554]
[1730910088596,3.68357658,2644.0,2643.1,0.7554]
[1730910088986,11.24721658,2644.3,2643.3,0.809]
[1730910089329,11.24720658,2644.3,2643.3,0.809]
[1730910089489,4.98570066,2644.2,2643.4,0.06288818]
[1730910089832,1.20380066,2644.2,2643.4,0.06288818]
[1730910090001,4.98569066,2644.2,2643.4,0.06288818]
[1730910090203,3.0,2644.1,2643.4,0.06288818]
[1730910090426,6.78202,2644.1,2643.4,0.06288818]
[1730910090725,1.17677107,2644.0,2643.4,0.06288818]
[1730910091841,3.0,2644.1,2643.4,0.06288818]
[1730910092001,3.0,2644.2,2643.4,0.06288818]
[1730910092202,3.33,2644.5,2643.5,12.98125392]
[1730910092416,3.33,2644.5,2643.7,0.7756]
[1730910092751,7.56158,2645.0,2643.9,0.7756]
[1730910092905,3.78079,2645.0,2644.0,0.06160246]
[1730910093246,3.7811,2644.8,2644.1,0.7502]
[1730910093403,3.78071,2645.0,2644.1,12.8802]
[1730910093603,3.78071,2645.0,2644.2,0.06165128]
[1730910093942,4.239641,2644.9,2644.2,0.06165128]
[1730910094336,3.78102,2644.8,2644.2,0.06165128]
[1730910094642,3.0,2644.7,2644.2,0.06165128]
[1730910095443,3.458711,2644.9,2644.2,0.06165128]
[1730910096034,3.33,2645.2,2644.3,12.9596]
[1730910096356,3.33,2645.7,2644.6,0.55]
[1730910096503,3.33,2645.7,2644.8,0.8296]
[1730910096706,3.33,2645.7,2645.1,0.55]
[1730910096908,4.56325,2646.5,2645.3,0.8296]
[1730910097115,4.56325,2646.5,2645.2,12.26579778]
[1730910097116,7.89325,2646.5,2645.5,0.8296]
[1730910097346,7.89325,2646.5,2645.6,0.05927647]
[1730910098438,3.0,2646.4,2645.7,0.8296]
[1730910098744,7.10865,2646.5,2645.7,0.8296]